bitfinex/quotes_ETHUSD_20250625
["timestamp","ask_amount","ask_price","bid_price","bid_amount"]
[1750872135475,0.32810127,2428.0,2427.9,23.98829275]
[1750872135795,0.32810127,2428.0,2427.9,19.66763675]
[1750872136103,0.32810127,2428.0,2427.9,26.14463675]
[1750872136406,0.32810127,2428.0,2427.9,23.98829275]
[1750872136973,0.32810127,2428.0,2427.9,6.26329275]
[1750872137175,0.32810127,2428.0,2427.9,7.3746]
[1750872137397,0.32810127,2428.0,2427.9,11.49338578]
[1750872137601,0.32810127,2428.0,2427.9,32.37305078]
[1750872137805,0.32810127,2428.0,2427.9,22.59078578]
[1750872138908,0.32810127,2428.0,2427.9,33.83934378]
[1750872139224,0.32810127,2428.0,2427.9,38.14878936]
[1750872139518,0.32810127,2428.0,2427.9,36.28675936]
[1750872139729,0.32810127,2428.0,2427.9,32.22747236]
[1750872140295,0.32810127,2428.0,2427.9,4.11878578]
[1750872140513,0.32810127,2428.0,2427.8,4.11882421]
[1750872140826,0.32810127,2428.0,2427.9,4.11878578]
[1750872141488,0.32810127,2428.0,2427.9,11.32078578]
[1750872141707,0.32810127,2428.0,2427.9,15.43378578]
[1750872141919,0.32810127,2428.0,2427.9,24.62404678]
[1750872143039,0.32810127,2428.0,2427.9,37.81393378]
[1750872143332,0.32810127,2428.0,2427.9,17.38904678]
[1750872143531,0.32810127,2428.0,2427.9,24.63604678]
[1750872144122,0.32810127,2428.0,2427.9,24.63704678]
[1750872144509,0.32810127,2428.0,2427.9,16.07404678]
[1750872144841,0.27810127,2428.0,2427.9,23.32004678]
[1750872145053,0.27810127,2428.0,2427.9,13.32004678]
[1750872146647,0.27810127,2428.0,2427.9,13.31804678]
[1750872147113,0.27810127,2428.0,2427.9,13.86804678]
[1750872148041,0.27810127,2428.0,2427.9,13.31304678]
[1750872148427,0.27810127,2428.0,2427.6,5.19818197]
[1750872148428,0.27810127,2428.0,2427.6,4.11921524]
[1750872148643,0.27810127,2428.0,2427.6,11.35724231]
[1750872148841,0.27810127,2428.0,2427.9,4.11878578]
[1750872149016,0.27810127,2428.0,2427.9,11.35678578]
[1750872150619,0.27810127,2428.0,2427.9,4.11878578]
[1750872150820,0.27810127,2428.0,2427.9,11.35678578]
[1750872151024,0.27810127,2428.0,2427.9,4.11878578]
[1750872151425,0.27810127,2428.0,2427.8,11.35088563]
[1750872151860,0.27810127,2428.0,2427.6,7.227]
[1750872152080,0.27810127,2428.0,2427.1,5.81469601]
[1750872152357,0.7858,2427.9,2427.5,4.11940759]
[1750872152525,4.90459432,2427.9,2427.4,4.11955713]
[1750872152731,4.90458979,2427.9,2427.4,11.34356048]
[1750872153031,0.27810127,2428.0,2427.5,0.55]
[1750872153354,0.27810127,2428.0,2427.7,4.11903931]
[1750872153549,0.27810127,2428.0,2427.6,7.234]
[1750872153881,0.7858,2427.9,2427.7,7.231]
[1750872154077,0.7858,2427.9,2427.8,4.11895543]
[1750872154548,0.27810127,2428.0,2427.9,4.11878578]
[1750872154852,0.27810127,2428.0,2427.9,11.89978578]
[1750872155419,0.27810127,2428.0,2427.9,11.34978578]
[1750872155856,0.27810127,2428.0,2427.9,11.89978578]
[1750872156184,0.005,2428.4,2428.3,15.44250731]
[1750872156315,0.005,2428.4,2428.3,22.69750731]
[1750872157452,0.005,2428.4,2428.3,27.78714631]
[1750872157631,0.005,2428.4,2428.3,22.69750731]
[1750872157835,0.005,2428.4,2428.3,4.11810731]
[1750872158341,0.005,2428.4,2428.3,5.66854303]
[1750872158538,0.005,2428.4,2428.3,5.79711786]
[1750872158930,0.005,2428.4,2428.3,6.34711786]
[1750872159251,0.005,2428.4,2428.3,7.10811786]
[1750872160260,0.005,2428.4,2428.3,6.34711786]
[1750872160635,0.005,2428.4,2428.3,6.34711801]
[1750872160838,0.7242,2429.0,2428.8,4.11718503]
[1750872161572,0.99932,2429.0,2428.7,4.11741903]
[1750872162270,0.99932,2429.0,2428.8,4.11725412]
[1750872162571,0.99932,2429.0,2428.3,5.66852465]
[1750872162572,0.99932,2429.0,2428.9,4.11709004]
[1750872162574,0.7242,2429.0,2428.9,4.11709004]
[1750872163135,0.7242,2429.0,2428.9,4.2456589]
[1750872163331,0.7242,2429.0,2428.9,4.2456555]
[1750872163538,0.7242,2429.0,2428.9,4.11709004]
[1750872163950,0.8024,2429.3,2429.2,4.11658159]
[1750872164344,0.8024,2429.3,2429.1,4.1166637]
[1750872164538,0.8024,2429.3,2429.0,4.11680916]
[1750872165045,0.8024,2429.3,2429.1,4.11672804]
[1750872165258,0.8024,2429.3,2428.9,11.36603238]
[1750872165558,0.8024,2429.3,2429.0,4.11681598]
[1750872166335,0.8024,2429.3,2428.9,11.3530717]
[1750872166535,0.8024,2429.3,2429.2,4.11658159]
[1750872167355,0.8024,2429.3,2428.9,7.236]
[1750872167558,0.771,2429.2,2428.3,1.55043572]
[1750872167756,5.09319986,2429.2,2428.8,0.2056]
[1750872167971,0.9766,2429.2,2428.8,4.32285831]
[1750872168171,0.9766,2429.2,2429.1,4.11675106]
[1750872168376,0.771,2429.2,2429.1,4.32235106]
[1750872169560,10.6759,2429.5,2429.2,4.11654529]
[1750872169869,10.6759,2429.5,2429.2,4.11657887]
[1750872170064,10.6759,2429.5,2429.4,4.32184269]
[1750872170242,9.884,2429.5,2429.4,4.32184269]
[1750872170447,9.884,2429.5,2429.4,4.11624269]
[1750872170648,0.005,2429.5,2429.4,4.32184269]
[1750872171249,0.005,2429.5,2429.4,12.93334269]
[1750872171492,0.005,2429.5,2429.4,14.63831498]
[1750872171664,0.005,2429.5,2429.4,24.63831498]
[1750872171977,0.005,2429.5,2429.4,38.73893398]
[1750872172176,0.005,2429.5,2429.4,28.07333698]
[1750872172377,0.005,2429.5,2429.4,29.90931498]
[1750872172583,0.005,2429.5,2429.4,20.60331498]
[1750872172748,0.005,2429.5,2429.4,31.00468698]
[1750872173080,0.005,2429.5,2429.4,50.68491798]
[1750872173284,0.005,2429.5,2429.4,50.16214098]
[1750872173474,0.005,2429.5,2429.4,40.26387298]
[1750872173678,0.005,2429.5,2429.4,40.06377298]
[1750872173987,0.005,2429.5,2429.4,13.93271498]
[1750872174348,0.005,2429.5,2429.0,10.7508]
[1750872174552,0.005,2429.5,2429.2,4.11651641]
[1750872174753,0.005,2429.5,2429.1,7.282]
[1750872174993,0.8333,2429.5,2429.1,7.282]
[1750872175195,0.8333,2429.5,2429.1,11.39873986]
[1750872175394,0.8333,2429.5,2429.1,11.39573986]
[1750872175584,0.8333,2429.5,2429.3,4.11638694]
[1750872175906,0.005,2429.5,2429.4,4.11624269]
[1750872176119,0.005,2429.5,2429.4,4.66624269]
[1750872176320,0.005,2429.5,2429.4,5.49764269]
[1750872178086,0.005,2429.5,2429.4,17.83703969]
[1750872178309,0.005,2429.5,2429.4,18.04398248]
[1750872178480,0.005,2429.5,2429.4,13.40922648]
[1750872178794,0.005,2429.5,2429.4,13.00412448]
[1750872179189,0.005,2429.5,2429.4,20.27512448]
[1750872179388,0.005,2429.5,2429.4,38.72678948]
[1750872179599,0.005,2429.5,2429.4,35.88823248]
[1750872180617,0.005,2429.5,2429.4,44.50069848]
[1750872181515,0.005,2429.5,2429.4,25.89758548]
[1750872181687,0.005,2429.5,2429.4,31.92798548]
[1750872182479,0.005,2429.5,2429.4,18.62658548]
[1750872182681,0.005,2429.5,2429.4,7.45078548]
[1750872182984,0.005,2429.5,2429.4,4.32184269]
[1750872184320,0.005,2429.5,2428.7,0.30841951]
[1750872184479,0.005,2429.5,2429.1,4.11672185]
[1750872184692,0.005,2429.5,2429.4,4.11624269]
[1750872187419,0.005,2429.5,2428.7,0.31161708]
[1750872187714,0.005,2429.5,2429.1,4.11667241]
[1750872187917,0.005,2429.5,2428.7,3.32131338]
[1750872187918,0.005,2429.5,2429.2,4.11657876]
[1750872188119,0.005,2429.5,2429.0,11.36579351]
[1750872188706,0.005,2429.5,2428.8,4.11719116]
[1750872188915,0.7828,2429.2,2428.8,4.11719116]
[1750872189116,1.27272292,2429.2,2428.6,7.243]
[1750872189423,4.11692751,2429.0,2428.5,4.11768587]
[1750872189728,12.9025167,2428.7,2428.0,0.21469253]
[1750872189900,0.7828,2428.4,2427.9,4.11863425]
[1750872190110,0.7828,2428.4,2428.1,4.1184417]
[1750872190346,0.005,2429.5,2428.1,0.41184417]
[1750872190347,0.7726,2428.7,2428.1,0.41184417]
[1750872190503,0.7726,2428.7,2428.2,4.11813529]
[1750872190702,0.7726,2428.7,2428.1,0.41184417]
[1750872190703,0.7726,2428.7,2428.3,4.11795301]
[1750872190925,0.7726,2428.7,2428.5,4.11774961]
[1750872191202,0.7726,2428.7,2428.6,4.11759861]
[1750872193930,0.8147,2429.0,2428.9,4.11709004]
[1750872194102,0.8147,2429.0,2428.4,7.249]
[1750872194297,0.8147,2429.0,2428.5,0.2056]
[1750872194298,5.13729932,2429.0,2428.5,0.2056]
[1750872194538,1.0203,2429.0,2428.5,4.32320439]
[1750872194704,2.521308,2429.0,2428.5,4.32320439]
[1750872195029,6.63829209,2429.0,2428.5,4.32320439]
[1750872195235,2.521308,2429.0,2428.6,4.11754067]
[1750872195426,6.6382288,2429.0,2428.5,4.32329414]
[1750872195621,2.521308,2429.0,2428.6,4.11759861]
[1750872196132,2.521308,2429.0,2428.5,4.32336642]
[1750872196304,2.521308,2429.0,2428.6,4.11746906]
[1750872196728,2.521308,2429.0,2428.5,0.2056]
[1750872196927,2.521308,2429.0,2428.9,4.11709004]
[1750872196928,0.8147,2429.0,2428.9,4.11709004]
[1750872197838,0.8235,2429.3,2429.1,4.11675106]
[1750872198342,0.8235,2429.3,2429.2,0.2056]
[1750872198705,0.8235,2429.3,2429.0,4.32236884]
[1750872199100,0.8235,2429.3,2429.0,0.2056]
[1750872199339,0.8235,2429.3,2429.0,4.32251299]
[1750872199704,0.8235,2429.3,2429.0,0.2056]
[1750872200417,1.95584322,2429.3,2429.0,0.2056]
[1750872200618,0.801,2428.7,2428.5,0.2056]
[1750872200938,0.801,2428.7,2428.6,4.11759861]
[1750872201844,7.242,2429.3,2428.3,4.11810082]
[1750872201845,0.824,2429.4,2428.3,4.11809844]
[1750872202152,2.056,2429.1,2428.9,0.2056]
[1750872202318,2.056,2429.1,2428.7,4.3229988]
[1750872202514,2.056,2429.1,2428.7,0.2056]
[1750872202727,0.824,2429.4,2429.0,4.11692054]
[1750872202939,0.2056,2429.3,2429.0,4.11692054]
[1750872203346,0.2056,2429.3,2428.9,0.2056]
[1750872203718,4.11692054,2429.0,2428.5,4.11766615]
[1750872203924,4.32237468,2429.1,2428.6,4.32310738]
[1750872204117,0.2056,2429.1,2428.6,0.2056]
[1750872204317,2.2616,2429.1,2428.7,4.11742907]
[1750872204619,2.2616,2429.1,2428.9,4.1170568]
[1750872204921,0.8102,2429.2,2429.1,4.11675106]
[1750872205514,0.005,2429.5,2429.4,4.11624269]
[1750872208838,0.005,2429.5,2429.4,4.66624269]
[1750872209734,0.005,2429.5,2429.4,4.11624269]
[1750872210252,0.005,2429.5,2429.4,4.66624269]
[1750872211449,0.005,2429.5,2429.4,5.49944269]
[1750872211628,0.005,2429.5,2429.4,7.42071022]
[1750872212854,0.005,2429.5,2429.4,14.63071022]
[1750872213532,0.005,2429.5,2429.4,14.62971022]
[1750872214681,0.005,2429.5,2429.4,13.23751022]
[1750872214832,0.005,2429.5,2429.4,11.31624269]
[1750872215033,0.005,2429.5,2429.4,4.11624269]
[1750872215233,0.005,2429.5,2429.4,11.31724269]
[1750872215463,0.005,2429.5,2429.4,12.07284269]
[1750872215835,0.005,2429.5,2429.4,12.33004269]
[1750872216035,0.005,2429.5,2429.4,14.55597022]
[1750872217154,0.005,2429.5,2429.4,13.19377022]
[1750872217460,0.005,2429.5,2429.4,11.51784269]
[1750872219179,0.005,2429.5,2429.4,12.06784269]
[1750872219343,0.005,2429.5,2429.4,12.89704269]
[1750872220571,0.005,2429.5,2429.4,22.89704269]
[1750872220869,0.005,2429.6,2429.5,45.45097326]
[1750872221039,0.005,2429.6,2429.5,61.74330088]
[1750872221635,0.005,2429.6,2429.5,61.94533695]
[1750872222171,0.005,2430.4,2430.0,4.11522633]
[1750872222386,0.005,2430.4,2430.3,26.24904234]
[1750872222587,0.005,2430.4,2430.3,28.39891704]
[1750872222751,0.005,2430.4,2430.3,7.56261704]
[1750872222952,0.005,2430.4,2430.3,11.30771834]
[1750872223156,0.005,2430.4,2430.3,4.90491834]
[1750872223366,0.005,2430.4,2430.3,14.90491834]
[1750872223690,0.005,2430.4,2430.3,15.45491834]
[1750872223866,0.005,2430.4,2430.3,22.65791834]
[1750872224070,0.005,2430.4,2430.3,25.74670464]
[1750872224587,0.005,2430.4,2430.3,11.31771834]
[1750872225178,0.005,2430.4,2430.3,11.86771834]
[1750872225472,0.005,2430.4,2430.3,12.68911834]
[1750872229043,0.005,2430.4,2430.3,14.73211834]
[1750872229246,0.005,2430.4,2430.3,5.48611834]
[1750872229488,0.005,2430.4,2430.3,13.63521894]
[1750872229793,0.005,2430.4,2430.3,5.07481894]
[1750872229994,0.005,2430.4,2430.3,12.26981894]
[1750872230177,0.005,2430.4,2430.3,4.11471834]
[1750872230481,0.005,2430.4,2430.3,11.31071834]
[1750872230664,0.005,2430.4,2430.3,4.11471834]
[1750872231180,0.005,2430.4,2430.3,11.30971834]
[1750872231364,0.005,2430.4,2430.3,4.11471834]
[1750872232070,0.005,2430.4,2430.3,11.30571834]
[1750872232876,0.005,2430.4,2430.3,4.32031834]
[1750872233094,0.005,2430.4,2430.3,11.50531834]
[1750872233299,0.005,2430.4,2430.3,0.2056]
[1750872233448,0.005,2430.4,2430.3,11.50531834]
[1750872234079,0.005,2430.4,2430.3,11.50131834]
[1750872234754,0.005,2430.4,2430.3,7.3866]
[1750872234982,0.005,2430.4,2430.3,11.50131834]
[1750872235908,0.005,2430.4,2430.3,7.3826]
[1750872236470,0.005,2430.4,2430.3,0.2056]
[1750872236803,0.005,2430.4,2430.2,7.3766]
[1750872237012,0.8172,2430.3,2430.2,7.3766]
[1750872237180,0.8172,2430.3,2430.2,0.2056]
[1750872237770,0.8172,2430.3,2430.0,10.0]
[1750872237771,4.11505699,2430.1,2430.0,10.0]
[1750872238077,4.94815699,2430.1,2430.0,10.0]
[1750872240819,0.8331,2430.1,2430.0,10.0]
[1750872241019,0.8331,2430.1,2429.4,4.11614757]
[1750872241020,0.7983,2429.9,2429.4,4.11614757]
[1750872241329,0.7983,2429.9,2429.8,0.55]
[1750872241631,0.7983,2430.1,2430.0,4.11522633]
[1750872241777,0.005,2430.4,2430.3,4.11471834]
[1750872241778,0.8033,2430.4,2430.3,4.11471834]
[1750872241980,0.8033,2430.4,2430.3,4.32031834]
[1750872242276,0.8033,2430.4,2430.3,11.50931834]
[1750872242278,0.005,2430.4,2430.3,11.50931834]
[1750872242471,0.005,2430.4,2430.3,13.07173668]
[1750872243415,0.005,2430.4,2430.3,14.42823668]
[1750872244227,1e-08,2430.4,2430.3,14.42823668]
[1750872245155,1e-08,2430.4,2430.3,6.68923668]
[1750872245291,1e-08,2430.4,2430.3,0.2056]
[1750872245488,1e-08,2430.4,2430.1,0.2056]
[1750872245817,10.00000001,2430.4,2430.1,0.2056]
[1750872245985,1e-08,2430.4,2430.1,4.32063625]
[1750872246321,1e-08,2430.4,2430.3,4.11471834]
[1750872246610,1e-08,2430.4,2430.3,4.32031834]
[1750872246812,1e-08,2430.4,2430.3,11.50531834]
[1750872247506,1e-08,2430.4,2430.3,11.84971834]
[1750872249678,1e-08,2430.4,2430.3,13.86571834]
[1750872250107,1e-08,2430.4,2430.3,5.9895872]
[1750872250319,1e-08,2430.4,2430.3,11.29471834]
[1750872250737,1e-08,2430.4,2430.3,4.11471834]
[1750872250890,1e-08,2430.4,2430.3,13.32171834]
[1750872252491,1e-08,2430.4,2430.3,4.66471834]
[1750872252807,1e-08,2430.4,2430.3,13.86671834]
[1750872253010,1e-08,2430.4,2430.3,15.7416872]
[1750872253316,1e-08,2430.4,2430.3,21.3289522]
[1750872253620,1e-08,2430.4,2430.3,15.7416872]
[1750872254116,1e-08,2430.4,2430.3,15.7296872]
[1750872254622,1e-08,2430.4,2430.3,20.4377072]
[1750872254818,1e-08,2430.4,2430.3,11.2477072]
[1750872255116,1e-08,2430.4,2430.3,20.4377072]
[1750872255299,1e-08,2430.4,2430.3,11.2477072]
[1750872255500,1e-08,2430.4,2430.3,20.4347072]
[1750872255699,1e-08,2430.4,2430.3,18.1166872]
[1750872256918,1e-08,2430.4,2430.3,15.7266872]
[1750872257126,1e-08,2430.4,2430.3,15.1646872]
[1750872257503,1e-08,2430.4,2430.3,15.3702872]
[1750872258097,1e-08,2430.4,2430.3,6.1952872]
[1750872258299,1e-08,2430.4,2430.3,13.49531834]
[1750872258624,1e-08,2430.4,2430.3,13.49131834]
[1750872259405,1e-08,2430.4,2430.3,4.32031834]
[1750872259701,1e-08,2430.4,2430.3,13.48931834]
[1750872259900,1e-08,2430.4,2430.3,13.48431834]
[1750872260223,1e-08,2430.4,2430.3,13.48331834]
[1750872260820,1e-08,2430.4,2430.3,4.32031834]
[1750872261022,1e-08,2430.4,2430.3,11.46231834]
[1750872261224,1e-08,2430.4,2430.3,14.03631834]
[1750872261532,1e-08,2430.4,2430.3,14.79351834]
[1750872263131,1e-08,2430.4,2430.3,13.45031834]
[1750872263629,1e-08,2430.4,2430.3,4.32031834]
[1750872263999,1e-08,2430.4,2430.3,0.2056]
[1750872264204,1e-08,2430.4,2430.3,7.3406]
[1750872264522,1e-08,2430.4,2430.3,11.45831834]
[1750872264701,1e-08,2430.4,2430.3,4.32031834]
[1750872265322,0.75000001,2430.4,2430.3,0.2056]
[1750872265535,4.11545246,2429.9,2429.8,0.2056]
[1750872265713,0.75,2429.6,2429.1,4.93901264]
[1750872265917,0.75,2429.6,2429.4,0.2056]
[1750872266430,0.75,2429.6,2429.1,0.8223497]
[1750872266600,0.75,2429.6,2429.2,0.2056]
[1750872266806,1.09556,2429.5,2429.2,0.2056]
[1750872267012,5.21167754,2429.5,2429.2,0.2056]
[1750872267231,0.7766,2429.3,2429.1,7.147]
[1750872267609,0.7766,2429.3,2429.2,4.11658159]
[1750872267815,0.7766,2429.3,2429.1,11.46927505]
[1750872268037,0.7766,2429.3,2429.2,4.11658159]
[1750872268626,0.8129,2429.6,2429.4,4.11620897]
[1750872268829,0.8129,2429.6,2429.1,7.3526]
[1750872269026,1.0185,2429.6,2429.2,4.11652723]
[1750872269336,1.0185,2429.6,2428.8,0.8225]
[1750872269337,4.11625503,2429.4,2428.8,4.1171153]
[1750872269545,0.7748,2429.3,2428.9,4.3226844]
[1750872269707,0.7748,2429.3,2428.9,0.2056]
[1750872269909,0.7748,2429.3,2428.9,4.32266848]
[1750872270134,0.7748,2429.3,2428.9,4.32266455]
[1750872270335,0.7748,2429.3,2428.9,0.2056]
[1750872270537,0.7748,2429.3,2429.2,4.11658159]
[1750872271717,0.7797,2429.8,2429.3,4.11628789]
[1750872271929,0.69511136,2429.7,2429.3,4.11628789]
[1750872272209,0.7797,2429.8,2429.7,4.11573445]
[1750872273712,0.7797,2429.8,2429.6,11.45842213]
[1750872274053,0.9853,2429.8,2429.4,0.2056]
[1750872274254,0.9853,2429.8,2429.4,4.32175095]
[1750872274541,0.9853,2429.8,2429.5,4.1159901]
[1750872274739,0.9853,2429.8,2429.4,0.2056]
[1750872275110,0.9853,2429.8,2429.4,4.32184238]
[1750872275321,4.90813701,2429.6,2429.4,0.2056]
[1750872275524,4.32170757,2429.5,2429.1,7.134]
[1750872275750,4.90836476,2429.4,2429.0,7.3406]
[1750872276326,4.90836476,2429.4,2429.0,0.2056]
[1750872276527,4.90836476,2429.4,2429.0,7.3416]
[1750872276826,5.83136889,2429.4,2429.0,0.2056]
[1750872278147,0.7921,2429.4,2429.2,4.11656346]
[1750872278363,0.7921,2429.4,2429.3,4.11641213]
[1750872278663,0.7921,2429.4,2429.3,11.45001213]
[1750872278830,1.0327,2429.7,2429.5,4.11594218]
[1750872279027,2.33527,2429.7,2429.4,4.11616707]
[1750872279574,0.8271,2429.7,2429.6,4.11590385]
[1750872279861,0.8271,2429.7,2429.6,4.32150385]
[1750872280256,0.8271,2429.7,2429.6,0.2056]
[1750872280461,0.8271,2429.7,2429.6,4.32150385]
[1750872281641,1.10911,2429.7,2429.0,0.8195]
[1750872281862,1.10911,2429.7,2428.8,14.1171288]
[1750872281863,1.10911,2429.7,2429.3,4.11637863]
[1750872281864,1.31471,2429.7,2429.3,4.11637863]
[1750872282059,1.31471,2429.7,2429.2,0.2056]
[1750872282395,5.43061331,2429.7,2429.2,0.2056]
[1750872282545,0.54306133,2429.6,2429.3,4.11629661]
[1750872282745,0.54306133,2429.6,2429.2,4.32209449]
[1750872282939,0.54306133,2429.6,2429.2,0.2056]
[1750872283140,4.11615411,2429.5,2429.0,4.11683031]
[1750872283378,0.2056,2429.4,2429.0,4.11683031]
[1750872283888,0.2056,2429.4,2429.2,4.1165614]
[1750872284587,0.2056,2429.4,2429.0,4.11689721]
[1750872284588,0.2056,2429.4,2429.3,4.11641213]
[1750872285172,0.9605,2429.6,2429.3,4.11641213]
[1750872285556,2.9545,2429.6,2429.4,4.11624269]
[1750872285759,0.7549,2429.6,2429.5,4.11607326]
[1750872289084,2.1996,2429.8,2429.7,4.11573445]
[1750872289255,1.994,2429.8,2429.7,4.11573445]
[1750872289586,2.9946,2430.2,2430.1,4.11505699]
[1750872289786,4.12270506,2430.2,2430.1,4.11505699]
[1750872290279,3.91710506,2430.2,2429.7,7.098]
[1750872290483,2.789,2430.2,2429.8,0.2056]
[1750872290663,2.789,2430.2,2430.0,4.11512915]
[1750872291989,1e-08,2430.4,2430.3,4.11471834]
[1750872292194,1e-08,2430.4,2430.3,6.56209017]
[1750872293186,1e-08,2430.4,2430.3,6.87482267]
[1750872296670,1e-08,2430.4,2430.3,18.83982267]
[1750872296874,1e-08,2430.4,2430.3,22.58502267]
[1750872298294,1e-08,2430.4,2430.3,20.62002267]
[1750872298483,1e-08,2430.4,2430.3,23.96082267]
[1750872298684,1e-08,2430.4,2430.3,30.44221567]
[1750872299384,1e-08,2430.4,2430.3,23.96082267]
[1750872299773,1e-08,2430.4,2430.3,26.00158067]
[1750872300995,1e-08,2430.4,2430.3,16.00158067]
[1750872301197,11.91168182,2432.1,2429.8,0.8225037]
[1750872301198,1.964,2430.7,2429.8,0.8225037]
[1750872301501,1.964,2430.7,2429.9,4.11532809]
[1750872301701,4.11421048,2430.6,2429.8,4.11545785]
[1750872301901,4.32016564,2430.4,2430.0,0.2056]
[1750872302098,4.11505699,2430.1,2429.5,4.11592761]
[1750872302421,6.07905699,2430.1,2429.8,0.2056]
[1750872302619,6.07905997,2430.1,2429.8,0.2056]
[1750872302782,4.11525176,2430.0,2429.8,0.2056]
[1750872302984,4.11525176,2430.0,2429.4,4.11615541]
[1750872302985,4.11534436,2430.0,2429.4,4.11615541]
[1750872303186,0.2056,2429.9,2429.5,4.32166832]
[1750872303809,4.32104852,2429.9,2429.5,0.2056]
[1750872303999,0.60792518,2430.0,2428.9,4.11706563]
[1750872304198,0.3352,2429.3,2428.8,4.11709573]
[1750872304411,0.3352,2429.3,2429.0,0.2056]
[1750872304612,0.3352,2429.3,2429.0,4.32250909]
[1750872304816,0.3352,2429.3,2429.0,0.2056]
[1750872305933,4.11658205,2429.2,2429.0,0.2056]
[1750872306702,4.4516894,2429.3,2429.0,0.2056]
[1750872307426,4.11669898,2429.2,2429.0,0.2056]
[1750872307723,4.11669898,2429.2,2428.5,0.41106589]
[1750872307724,4.11675106,2429.1,2428.5,0.41106589]
[1750872308022,4.11675106,2429.1,2428.6,0.2056]
[1750872308023,4.11694684,2429.0,2428.6,0.2056]
[1750872308214,6.08194684,2429.0,2428.6,0.2056]
[1750872308416,4.11711393,2428.9,2428.6,0.2056]
[1750872308617,4.11759861,2428.6,2428.5,0.41106589]
[1750872308931,4.11759861,2428.6,2428.2,0.2056]
[1750872308932,4.11785102,2428.5,2428.2,0.2056]
[1750872309103,1.965,2428.4,2428.2,0.2056]
[1750872310090,0.3352,2428.7,2427.8,0.8306]
[1750872310091,0.3352,2428.7,2428.5,4.11776816]
[1750872310511,0.3352,2428.7,2428.4,0.2056]
[1750872310939,0.3352,2428.7,2428.4,4.32339467]
[1750872311106,0.3352,2428.7,2428.5,4.11776662]
[1750872311308,0.3352,2428.7,2428.5,4.11774072]
[1750872311497,0.3352,2428.7,2428.4,4.32347194]
[1750872311694,0.99748992,2428.7,2427.5,17.117]
[1750872311998,0.2056,2428.6,2428.3,4.11799698]
[1750872312197,0.3352,2428.7,2428.3,4.11799698]
[1750872312420,0.3352,2428.7,2428.6,4.11759861]
[1750872312723,1.965,2428.8,2428.5,4.11767433]
[1750872312905,1.965,2428.8,2428.3,4.11797405]
[1750872313106,2.60673807,2428.8,2428.0,7.117]
[1750872313314,0.3352,2428.6,2428.2,4.11815374]
[1750872313529,0.3352,2428.6,2428.0,4.11852098]
[1750872313530,4.11785705,2428.5,2428.0,4.11852098]
[1750872314039,0.3352,2428.6,2428.2,4.11811983]
[1750872314236,0.3352,2428.6,2427.6,7.901]
[1750872314434,0.3352,2428.6,2428.1,4.11836824]
[1750872314617,0.3352,2428.6,2428.0,4.11859009]
[1750872314618,4.11782109,2428.5,2428.0,4.11859009]
[1750872315017,0.3352,2428.6,2428.4,4.11782574]
[1750872315219,0.3352,2428.6,2428.3,4.1180287]
[1750872315413,2.3012,2428.6,2428.2,4.11819345]
[1750872315614,2.3012,2428.6,2428.1,4.1183127]
[1750872315794,2.3012,2428.6,2428.1,4.11834242]
[1750872316321,4.11827455,2428.3,2427.3,4.11980389]
[1750872316492,0.3352,2428.2,2427.8,4.11886596]
[1750872316698,1.966,2428.1,2427.8,4.11886596]
[1750872316996,1.966,2428.1,2427.6,4.11921669]
[1750872317197,1.966,2428.1,2427.2,0.7618]
[1750872317433,4.11869223,2428.0,2427.5,4.11945223]
[1750872317596,4.11871135,2428.0,2427.4,4.11947483]
[1750872317801,0.3352,2428.2,2427.9,4.11870039]
[1750872318001,2.3012,2428.2,2427.9,4.11870039]
[1750872318315,0.3352,2428.2,2428.0,4.11859377]
[1750872318535,0.3352,2428.2,2427.9,4.11869727]
[1750872318938,0.3352,2428.2,2428.1,4.11844652]
[1750872319137,1.966,2428.3,2428.2,4.11827691]
[1750872319435,2.3012,2428.5,2428.4,4.11793773]
[1750872320230,2.3012,2428.5,2428.3,4.11804085]
[1750872320633,2.53132,2428.5,2427.9,4.11876455]
[1750872320803,4.11812549,2428.3,2427.3,7.101]
[1750872321145,4.118288,2428.2,2427.7,4.11900944]
[1750872321306,0.3352,2428.4,2427.3,7.101]
[1750872321508,4.45410739,2427.9,2427.4,4.11961626]
[1750872321805,4.45410739,2427.9,2427.2,7.8726]
[1750872321806,0.3352,2427.9,2427.2,7.8726]
[1750872322030,0.3352,2427.9,2427.7,4.11901097]
[1750872322333,0.3352,2427.9,2427.4,4.11952074]
[1750872322525,0.3352,2427.9,2427.6,0.2056]
[1750872322846,0.3352,2427.9,2427.7,4.11911758]
[1750872323007,0.3352,2427.9,2427.6,4.32481656]
[1750872323208,0.3352,2427.9,2427.6,0.2056]
[1750872323718,4.45427343,2427.8,2427.0,0.41142104]
[1750872323918,0.5408,2427.8,2427.5,4.11946446]
[1750872324129,0.5408,2427.8,2427.4,0.2056]
[1750872324327,0.3352,2427.8,2427.6,4.11924597]
[1750872325233,2.1716,2428.0,2427.6,4.96366952]
[1750872325234,2.5068,2428.0,2427.6,4.96366952]
[1750872325451,2.5068,2428.0,2427.6,4.11928207]
[1750872325623,2.5068,2428.0,2427.7,4.11902463]
[1750872326025,2.5068,2428.0,2427.5,0.2056]
[1750872326225,2.5068,2428.0,2427.8,4.11887209]
[1750872326636,0.3352,2428.4,2427.9,4.11878578]
[1750872326835,0.3352,2428.4,2428.3,4.11810731]
[1750872327354,7.8,2428.8,2428.3,0.2056]
[1750872327355,0.5408,2428.7,2428.3,0.2056]
[1750872327562,0.5408,2428.7,2428.4,4.11781616]
[1750872327768,0.3352,2428.7,2428.6,4.11759861]
[1750872327920,1.969,2428.8,2428.6,4.11753265]
[1750872328561,10.0806,2428.9,2428.5,0.2056]
[1750872328760,10.0806,2428.9,2428.7,0.2056]
[1750872328761,9.875,2428.9,2428.7,0.2056]
[1750872330273,13.99211075,2428.9,2428.7,0.2056]
[1750872330454,4.32285955,2428.8,2428.3,0.2056]
[1750872330833,0.2056,2428.8,2428.5,4.11768754]